[Event "Live Chess"]
[Site "Chess.com"]
[Date "2021.09.03"]
[Round "1"]
[White "CoachJoeF"]
[Black "GGuseinov"]
[Result "0-1"]
[CurrentPosition "k1b5/pp3p1p/6p1/P1p3Q1/8/7r/3r1qP1/1R4K1 w - -"]
[Timezone "UTC"]
[ECO "B23"]
[ECOUrl "https://www.chess.com/openings/Sicilian-Defense-Closed-2...g6"]
[UTCDate "2021.09.03"]
[UTCTime "01:31:55"]
[WhiteElo "1494"]
[BlackElo "2563"]
[TimeControl "2100+5"]
[Termination "GGuseinov won by checkmate"]
[StartTime "01:31:55"]
[EndDate "2021.09.03"]
[EndTime "01:57:39"]
[Link "https://www.chess.com/game/live/24371507043"]

1. e4 {[%clk 0:34:38.6]} 1... c5 {[%clk 0:35:03.2]} 2. Nc3 {[%clk 0:34:33.1]} 2... g6 {[%clk 0:35:05.5]} 3. f4 {[%clk 0:34:33.9]} 3... Bg7 {[%clk 0:35:07.2]} 4. Nf3 {[%clk 0:34:32.5]} 4... Nc6 {[%clk 0:35:10.9]} 5. Bc4 {[%clk 0:34:28.1]} 5... e6 {[%clk 0:35:09.1]} 6. d3 {[%clk 0:33:45.2]} 6... Nge7 {[%clk 0:35:08.8]} 7. Ne2 {[%clk 0:33:35.2]} 7... d5 {[%clk 0:35:12]} 8. Bb5 {[%clk 0:33:32.1]} 8... Qa5+ {[%clk 0:35:11.9]} 9. Nc3 {[%clk 0:32:42.2]} 9... d4 {[%clk 0:35:02.7]} 10. Bxc6+ {[%clk 0:32:41.8]} 10... Nxc6 {[%clk 0:35:05]} 11. Bd2 {[%clk 0:32:44.9]} 11... dxc3 {[%clk 0:35:09]} 12. bxc3 {[%clk 0:32:47.9]} 12... Bxc3 {[%clk 0:35:12.5]} 13. O-O {[%clk 0:32:49]} 13... Bxd2 {[%clk 0:35:14.8]} 14. Nxd2 {[%clk 0:32:51.1]} 14... Bd7 {[%clk 0:35:16.6]} 15. Nf3 {[%clk 0:32:40.1]} 15... O-O-O {[%clk 0:35:07.7]} 16. c3 {[%clk 0:32:15.2]} 16... Kb8 {[%clk 0:35:01.6]} 17. Qc2 {[%clk 0:32:08.5]} 17... Bc8 {[%clk 0:34:39.7]} 18. a4 {[%clk 0:32:01.6]} 18... Rd7 {[%clk 0:34:40.9]} 19. Rab1 {[%clk 0:31:21.4]} 19... Qc7 {[%clk 0:34:38]} 20. Nd2 {[%clk 0:31:15.1]} 20... Rhd8 {[%clk 0:34:40.1]} 21. Rf3 {[%clk 0:31:04.1]} 21... Na5 {[%clk 0:34:42.4]} 22. c4 {[%clk 0:29:06.7]} 22... Nc6 {[%clk 0:34:40.5]} 23. Nb3 {[%clk 0:28:06.9]} 23... Nb4 {[%clk 0:34:38.9]} 24. Qf2 {[%clk 0:27:41.1]} 24... Nxd3 {[%clk 0:34:19.9]} 25. Qe3 {[%clk 0:27:33.3]} 25... e5 {[%clk 0:33:44.7]} 26. fxe5 {[%clk 0:27:00.8]} 26... Nxe5 {[%clk 0:33:42.9]} 27. Rff1 {[%clk 0:26:33.5]} 27... Nxc4 {[%clk 0:33:18.6]} 28. Qc3 {[%clk 0:26:16.4]} 28... Nd2 {[%clk 0:32:24.1]} 29. Nxd2 {[%clk 0:26:10.1]} 29... Rxd2 {[%clk 0:32:29]} 30. a5 {[%clk 0:26:08.5]} 30... Qd6 {[%clk 0:31:21]} 31. Qb3 {[%clk 0:23:38.4]} 31... Qd4+ {[%clk 0:31:13.2]} 32. Kh1 {[%clk 0:23:40.5]} 32... Qxe4 {[%clk 0:31:11.8]} 33. Qg3+ {[%clk 0:21:54.9]} 33... Ka8 {[%clk 0:31:08]} 34. h3 {[%clk 0:20:29.7]} 34... R8d3 {[%clk 0:30:59.4]} 35. Qg5 {[%clk 0:20:08.9]} 35... Rxh3+ {[%clk 0:30:40.5]} 36. Kg1 {[%clk 0:19:58.9]} 36... Qd4+ {[%clk 0:30:44.4]} 37. Rf2 {[%clk 0:19:56.4]} 37... Qxf2# {[%clk 0:30:48.1]} 0-1

[Event "Live Chess"]
[Site "Chess.com"]
[Date "2021.09.03"]
[Round "1"]
[White "Swarnapuri"]
[Black "aaroncraig602"]
[Result "1-0"]
[CurrentPosition "rn3rk1/pQR3pp/4pp2/3q4/3PBB2/4P3/PP3PPP/5RK1 b - -"]
[Timezone "UTC"]
[ECO "A45"]
[ECOUrl "https://www.chess.com/openings/Indian-Game"]
[UTCDate "2021.09.03"]
[UTCTime "01:32:12"]
[WhiteElo "2475"]
[BlackElo "1451"]
[TimeControl "2100+5"]
[Termination "Swarnapuri won by resignation"]
[StartTime "01:32:12"]
[EndDate "2021.09.03"]
[EndTime "01:53:29"]
[Link "https://www.chess.com/game/live/24371509039"]

1. d4 {[%clk 0:35:03.5]} 1... Nf6 {[%clk 0:34:53.3]} 2. Bf4 {[%clk 0:35:05.9]} 2... d5 {[%clk 0:34:37.3]} 3. e3 {[%clk 0:35:09.2]} 3... Bf5 {[%clk 0:34:35.9]} 4. c4 {[%clk 0:35:12.5]} 4... e6 {[%clk 0:34:34.1]} 5. Nc3 {[%clk 0:35:15.7]} 5... c6 {[%clk 0:34:18.5]} 6. Qb3 {[%clk 0:35:18.5]} 6... Qd7 {[%clk 0:32:52.7]} 7. Nf3 {[%clk 0:35:19.4]} 7... Be7 {[%clk 0:31:38.8]} 8. Be2 {[%clk 0:35:00.4]} 8... O-O {[%clk 0:31:38.6]} 9. Rc1 {[%clk 0:34:15.1]} 9... Na6 {[%clk 0:30:28.8]} 10. O-O {[%clk 0:32:48.2]} 10... Nh5 {[%clk 0:29:06.8]} 11. Ne5 {[%clk 0:32:48.9]} 11... Qc8 {[%clk 0:28:55.9]} 12. Bxh5 {[%clk 0:32:51.8]} 12... f6 {[%clk 0:28:46.9]} 13. Nxc6 {[%clk 0:31:56.5]} 13... bxc6 {[%clk 0:28:28.5]} 14. cxd5 {[%clk 0:31:58.5]} 14... cxd5 {[%clk 0:27:00.8]} 15. Nxd5 {[%clk 0:31:59.4]} 15... Qd7 {[%clk 0:27:04.4]} 16. Nxe7+ {[%clk 0:31:44.9]} 16... Qxe7 {[%clk 0:27:06.4]} 17. Qb5 {[%clk 0:31:09.6]} 17... Nb8 {[%clk 0:22:26.7]} 18. Rc7 {[%clk 0:30:47.8]} 18... Qd8 {[%clk 0:22:23.5]} 19. Qb7 {[%clk 0:30:49.1]} 19... Qd5 {[%clk 0:21:54.9]} 20. Bf3 {[%clk 0:30:46.5]} 20... Be4 {[%clk 0:21:38.8]} 21. Bxe4 {[%clk 0:30:48.4]} 1-0

[Event "Live Chess"]
[Site "Chess.com"]
[Date "2021.09.03"]
[Round "1"]
[White "jgray43"]
[Black "SelfishShellfish"]
[Result "0-1"]
[CurrentPosition "r6k/ppp3pp/3p1r2/3B4/1P2P1n1/2P2p1q/P4P2/2RQ1RK1 w - -"]
[Timezone "UTC"]
[ECO "C50"]
[ECOUrl "https://www.chess.com/openings/Italian-Game-Hungarian-Defense"]
[UTCDate "2021.09.03"]
[UTCTime "01:32:12"]
[WhiteElo "1442"]
[BlackElo "2314"]
[TimeControl "2100+5"]
[Termination "SelfishShellfish won by resignation"]
[StartTime "01:32:12"]
[EndDate "2021.09.03"]
[EndTime "01:44:15"]
[Link "https://www.chess.com/game/live/24371509559"]

1. e4 {[%clk 0:35:00.7]} 1... e5 {[%clk 0:34:42.7]} 2. Nf3 {[%clk 0:35:02.7]} 2... Nc6 {[%clk 0:34:45.5]} 3. Bc4 {[%clk 0:35:02.5]} 3... Be7 {[%clk 0:34:43.2]} 4. O-O {[%clk 0:34:58.5]} 4... Nf6 {[%clk 0:34:45.5]} 5. d3 {[%clk 0:35:00.8]} 5... O-O {[%clk 0:34:47.7]} 6. Nc3 {[%clk 0:35:03.6]} 6... d6 {[%clk 0:34:48]} 7. Nd5 {[%clk 0:35:00.5]} 7... Nxd5 {[%clk 0:34:27.8]} 8. Bxd5 {[%clk 0:35:02.2]} 8... Kh8 {[%clk 0:34:07.8]} 9. c3 {[%clk 0:35:03.3]} 9... f5 {[%clk 0:33:31.8]} 10. b4 {[%clk 0:34:56.7]} 10... fxe4 {[%clk 0:33:09.4]} 11. dxe4 {[%clk 0:34:59.7]} 11... Bg4 {[%clk 0:33:11.9]} 12. h3 {[%clk 0:35:00.6]} 12... Bxf3 {[%clk 0:33:09.3]} 13. gxf3 {[%clk 0:35:02.9]} 13... Bg5 {[%clk 0:32:40.8]} 14. Kh1 {[%clk 0:34:55.8]} 14... Bxc1 {[%clk 0:32:33.5]} 15. Rxc1 {[%clk 0:34:49.8]} 15... Qh4 {[%clk 0:32:35.3]} 16. Kg2 {[%clk 0:33:34.3]} 16... Rf6 {[%clk 0:32:33.9]} 17. f4 {[%clk 0:32:40.1]} 17... exf4 {[%clk 0:31:39.6]} 18. Qf3 {[%clk 0:32:26.9]} 18... Ne5 {[%clk 0:31:40.1]} 19. Qd1 {[%clk 0:30:51.4]} 19... f3+ {[%clk 0:31:32.7]} 20. Kh2 {[%clk 0:30:45]} 20... Ng4+ {[%clk 0:31:34.9]} 21. Kg1 {[%clk 0:30:10.9]} 21... Qxh3 {[%clk 0:31:37.5]} 0-1

[Event "Live Chess"]
[Site "Chess.com"]
[Date "2021.09.03"]
[Round "1"]
[White "knvsback"]
[Black "Raindog2"]
[Result "1-0"]
[CurrentPosition "2k4Q/K7/2PP4/1PP5/5N2/7P/2b5/8 b - -"]
[Timezone "UTC"]
[ECO "C53"]
[ECOUrl "https://www.chess.com/openings/Giuoco-Piano-Game-Main-Line-Giuoco-Pianissimo-Variation"]
[UTCDate "2021.09.03"]
[UTCTime "01:32:15"]
[WhiteElo "1856"]
[BlackElo "1339"]
[TimeControl "2100+5"]
[Termination "knvsback won by checkmate"]
[StartTime "01:32:15"]
[EndDate "2021.09.03"]
[EndTime "02:44:27"]
[Link "https://www.chess.com/game/live/24371511549"]

1. e4 {[%clk 0:34:47.1]} 1... e5 {[%clk 0:34:58.5]} 2. Nf3 {[%clk 0:34:37.9]} 2... Nc6 {[%clk 0:34:57.1]} 3. Bc4 {[%clk 0:34:33.1]} 3... Bc5 {[%clk 0:34:52.2]} 4. c3 {[%clk 0:34:22.3]} 4... Nf6 {[%clk 0:33:36.6]} 5. d3 {[%clk 0:34:20.8]} 5... Na5 {[%clk 0:31:45]} 6. Bxf7+ {[%clk 0:32:13.2]} 6... Kxf7 {[%clk 0:31:43.2]} 7. Nxe5+ {[%clk 0:31:03.5]} 7... Ke8 {[%clk 0:31:06.9]} 8. b4 {[%clk 0:29:37.2]} 8... d6 {[%clk 0:29:53.1]} 9. bxc5 {[%clk 0:28:12.3]} 9... dxe5 {[%clk 0:29:49.8]} 10. O-O {[%clk 0:27:41.5]} 10... Be6 {[%clk 0:28:03.3]} 11. f4 {[%clk 0:27:21.6]} 11... Nc6 {[%clk 0:26:53]} 12. fxe5 {[%clk 0:27:04.1]} 12... Nxe5 {[%clk 0:26:51.6]} 13. d4 {[%clk 0:27:07.1]} 13... Bg4 {[%clk 0:24:56.9]} 14. Qe1 {[%clk 0:26:49.6]} 14... Nd3 {[%clk 0:24:03.2]} 15. Qe3 {[%clk 0:24:15.8]} 15... Nxc1 {[%clk 0:23:17.4]} 16. Rxc1 {[%clk 0:24:10.2]} 16... Qe7 {[%clk 0:22:51.4]} 17. Nd2 {[%clk 0:23:56.4]} 17... Rf8 {[%clk 0:22:36.9]} 18. c4 {[%clk 0:21:28.4]} 18... Bf5 {[%clk 0:21:51.4]} 19. Re1 {[%clk 0:21:15.6]} 19... Nxe4 {[%clk 0:21:48.4]} 20. Nxe4 {[%clk 0:21:10.6]} 20... Kd7 {[%clk 0:19:55.5]} 21. Ng3 {[%clk 0:19:00.4]} 21... Qxe3+ {[%clk 0:15:04.3]} 22. Rxe3 {[%clk 0:19:02.1]} 22... Bg6 {[%clk 0:14:51.4]} 23. Rae1 {[%clk 0:18:56]} 23... Rae8 {[%clk 0:14:53.1]} 24. Nf1 {[%clk 0:18:37.4]} 24... Bd3 {[%clk 0:14:22.4]} 25. Nd2 {[%clk 0:18:14.6]} 25... Bg6 {[%clk 0:12:55.4]} 26. Nf3 {[%clk 0:17:57.4]} 26... Rxe3 {[%clk 0:08:28.3]} 27. Rxe3 {[%clk 0:17:57.8]} 27... Re8 {[%clk 0:08:08.2]} 28. Rxe8 {[%clk 0:17:46.8]} 28... Kxe8 {[%clk 0:08:11]} 29. Ne5 {[%clk 0:17:45.2]} 29... Bc2 {[%clk 0:08:02.9]} 30. Kf2 {[%clk 0:17:39.2]} 30... a5 {[%clk 0:07:55.3]} 31. a3 {[%clk 0:17:37.1]} 31... Bf5 {[%clk 0:07:43.5]} 32. Ke3 {[%clk 0:17:30.6]} 32... g5 {[%clk 0:07:23.9]} 33. g4 {[%clk 0:17:00.6]} 33... Bc2 {[%clk 0:07:09.1]} 34. d5 {[%clk 0:16:39.1]} 34... Ke7 {[%clk 0:07:06.7]} 35. Kd4 {[%clk 0:16:38.2]} 35... Bb1 {[%clk 0:06:41.6]} 36. c6 {[%clk 0:14:41.2]} 36... b6 {[%clk 0:05:01.3]} 37. c5 {[%clk 0:13:45.6]} 37... b5 {[%clk 0:04:43.8]} 38. Nf3 {[%clk 0:12:40.3]} 38... b4 {[%clk 0:02:50.8]} 39. axb4 {[%clk 0:12:37]} 39... a4 {[%clk 0:02:48.2]} 40. Nxg5 {[%clk 0:12:08.6]} 40... a3 {[%clk 0:02:50.5]} 41. Kc3 {[%clk 0:12:11.5]} 41... a2 {[%clk 0:02:52.8]} 42. Kb2 {[%clk 0:12:14.8]} 42... h6 {[%clk 0:02:42.5]} 43. Ne6 {[%clk 0:09:25.2]} 43... Be4 {[%clk 0:02:29.7]} 44. Nxc7 {[%clk 0:09:18.9]} 44... Kd8 {[%clk 0:01:57.7]} 45. Ne6+ {[%clk 0:08:59.5]} 45... Kc8 {[%clk 0:01:37.6]} 46. Nf4 {[%clk 0:08:48.6]} 46... Kc7 {[%clk 0:01:04.4]} 47. Kxa2 {[%clk 0:08:36.1]} 47... Bf3 {[%clk 0:00:44.6]} 48. h3 {[%clk 0:08:35.8]} 48... Be4 {[%clk 0:00:47]} 49. Kb3 {[%clk 0:08:32]} 49... Bf3 {[%clk 0:00:37.6]} 50. b5 {[%clk 0:08:28.5]} 50... Bd1+ {[%clk 0:00:38.8]} 51. Kb4 {[%clk 0:08:29.9]} 51... Bc2 {[%clk 0:00:37.6]} 52. Ka5 {[%clk 0:08:20.7]} 52... Be4 {[%clk 0:00:39.6]} 53. d6+ {[%clk 0:08:13.9]} 53... Kc8 {[%clk 0:00:38.5]} 54. Kb6 {[%clk 0:08:16.8]} 54... h5 {[%clk 0:00:38.6]} 55. gxh5 {[%clk 0:08:07.6]} 55... Bf5 {[%clk 0:00:32.5]} 56. h6 {[%clk 0:08:01]} 56... Bh7 {[%clk 0:00:15.6]} 57. Ka7 {[%clk 0:07:59.1]} 57... Be4 {[%clk 0:00:17.2]} 58. h7 {[%clk 0:07:48.6]} 58... Bc2 {[%clk 0:00:16.5]} 59. h8=Q# {[%clk 0:07:46.2]} 1-0

[Event "Live Chess"]
[Site "Chess.com"]
[Date "2021.09.03"]
[Round "1"]
[White "austinjin666XD"]
[Black "maturner"]
[Result "1-0"]
[CurrentPosition "4R3/1PB2pk1/2p2bpp/8/p7/7P/P4PPK/3r4 b - -"]
[Timezone "UTC"]
[ECO "B12"]
[ECOUrl "https://www.chess.com/openings/Caro-Kann-Defense-Advance-Botvinnik-Carls-Defense"]
[UTCDate "2021.09.03"]
[UTCTime "01:32:31"]
[WhiteElo "1318"]
[BlackElo "1853"]
[TimeControl "2100+5"]
[Termination "austinjin666XD won by resignation"]
[StartTime "01:32:31"]
[EndDate "2021.09.03"]
[EndTime "02:22:26"]
[Link "https://www.chess.com/game/live/24371512043"]

1. e4 {[%clk 0:35:03.7]} 1... c6 {[%clk 0:34:31.8]} 2. d4 {[%clk 0:35:04.4]} 2... d5 {[%clk 0:34:34.3]} 3. e5 {[%clk 0:35:00.8]} 3... c5 {[%clk 0:34:34.8]} 4. c3 {[%clk 0:33:39.3]} 4... Bf5 {[%clk 0:34:30.9]} 5. dxc5 {[%clk 0:33:29]} 5... e6 {[%clk 0:34:17.8]} 6. b4 {[%clk 0:33:08.9]} 6... Qc7 {[%clk 0:32:16.6]} 7. Bb5+ {[%clk 0:32:29.1]} 7... Nc6 {[%clk 0:32:09.4]} 8. Nf3 {[%clk 0:30:59]} 8... Bg4 {[%clk 0:31:40]} 9. Nbd2 {[%clk 0:28:38.8]} 9... Ne7 {[%clk 0:30:38]} 10. O-O {[%clk 0:28:23.4]} 10... Ng6 {[%clk 0:30:30.5]} 11. h3 {[%clk 0:27:37.5]} 11... Bxf3 {[%clk 0:30:20.7]} 12. Nxf3 {[%clk 0:27:36.5]} 12... Nxe5 {[%clk 0:29:13.3]} 13. Bf4 {[%clk 0:25:46.1]} 13... Nxf3+ {[%clk 0:28:35.4]} 14. Qxf3 {[%clk 0:25:51]} 14... Qd8 {[%clk 0:27:15.4]} 15. c4 {[%clk 0:23:25.2]} 15... Be7 {[%clk 0:24:53.6]} 16. Rfd1 {[%clk 0:22:45.4]} 16... O-O {[%clk 0:23:43.6]} 17. cxd5 {[%clk 0:22:43.8]} 17... exd5 {[%clk 0:21:42.3]} 18. Rxd5 {[%clk 0:22:23.6]} 18... Qc8 {[%clk 0:19:11.6]} 19. Bxc6 {[%clk 0:21:52.7]} 19... Qxc6 {[%clk 0:18:28.3]} 20. Rd3 {[%clk 0:21:09.1]} 20... Qxf3 {[%clk 0:18:00.7]} 21. Rxf3 {[%clk 0:21:11]} 21... a5 {[%clk 0:17:51.2]} 22. Re1 {[%clk 0:19:17]} 22... Bf6 {[%clk 0:17:23.7]} 23. Bd6 {[%clk 0:19:07.8]} 23... Rfd8 {[%clk 0:17:11.4]} 24. b5 {[%clk 0:17:20]} 24... a4 {[%clk 0:16:24.5]} 25. b6 {[%clk 0:16:18.5]} 25... h6 {[%clk 0:15:51.4]} 26. Rfe3 {[%clk 0:15:48.6]} 26... g6 {[%clk 0:14:56]} 27. Bc7 {[%clk 0:15:25.7]} 27... Rd5 {[%clk 0:14:13.9]} 28. Re8+ {[%clk 0:15:00.8]} 28... Rxe8 {[%clk 0:14:15.6]} 29. Rxe8+ {[%clk 0:15:05.7]} 29... Kg7 {[%clk 0:12:59.3]} 30. c6 {[%clk 0:14:56.3]} 30... bxc6 {[%clk 0:12:11.5]} 31. b7 {[%clk 0:14:52.6]} 31... Rd1+ {[%clk 0:11:15.1]} 32. Kh2 {[%clk 0:14:55.3]} 1-0

[Event "Live Chess"]
[Site "Chess.com"]
[Date "2021.09.03"]
[Round "1"]
[White "chessappeals"]
[Black "victor6688"]
[Result "1/2-1/2"]
[CurrentPosition "8/1k6/1p2p2p/4p1p1/P1K1P1P1/5P1P/8/8 w - -"]
[Timezone "UTC"]
[ECO "A07"]
[ECOUrl "https://www.chess.com/openings/Kings-Indian-Attack-2...Nc6-3.Bg2-e5-4.d3"]
[UTCDate "2021.09.03"]
[UTCTime "01:32:28"]
[WhiteElo "1750"]
[BlackElo "1161"]
[TimeControl "2100+5"]
[Termination "Game drawn by agreement"]
[StartTime "01:32:28"]
[EndDate "2021.09.03"]
[EndTime "02:45:11"]
[Link "https://www.chess.com/game/live/24371512407"]

1. Nf3 {[%clk 0:35:03.2]} 1... d5 {[%clk 0:34:59.5]} 2. g3 {[%clk 0:35:05]} 2... Nc6 {[%clk 0:34:50.8]} 3. Bg2 {[%clk 0:35:08.2]} 3... e5 {[%clk 0:33:58]} 4. d3 {[%clk 0:34:55]} 4... Bf5 {[%clk 0:31:44.5]} 5. O-O {[%clk 0:33:48.5]} 5... Nf6 {[%clk 0:31:13.1]} 6. Bg5 {[%clk 0:33:17.7]} 6... Be7 {[%clk 0:30:58.6]} 7. Nbd2 {[%clk 0:32:08.4]} 7... O-O {[%clk 0:30:09.9]} 8. c3 {[%clk 0:31:39.7]} 8... h6 {[%clk 0:27:49.5]} 9. Bxf6 {[%clk 0:31:26.5]} 9... Bxf6 {[%clk 0:27:44.6]} 10. e4 {[%clk 0:30:55.8]} 10... dxe4 {[%clk 0:27:25.6]} 11. dxe4 {[%clk 0:30:18.3]} 11... Bg4 {[%clk 0:25:44.5]} 12. h3 {[%clk 0:29:37.3]} 12... Be6 {[%clk 0:24:27.1]} 13. Qc2 {[%clk 0:27:49]} 13... Qd7 {[%clk 0:22:16.8]} 14. Kh2 {[%clk 0:27:26.1]} 14... Rad8 {[%clk 0:21:00]} 15. Nb3 {[%clk 0:26:40.5]} 15... Qe7 {[%clk 0:18:39.9]} 16. Rad1 {[%clk 0:24:53.9]} 16... Bxb3 {[%clk 0:17:37.9]} 17. Qxb3 {[%clk 0:24:39.5]} 17... Rxd1 {[%clk 0:16:47.4]} 18. Rxd1 {[%clk 0:24:34]} 18... b6 {[%clk 0:15:32.9]} 19. Rd2 {[%clk 0:21:52.8]} 19... Bg5 {[%clk 0:13:22.2]} 20. Nxg5 {[%clk 0:21:21.6]} 20... Qxg5 {[%clk 0:13:11.2]} 21. Qd1 {[%clk 0:19:53.7]} 21... Rd8 {[%clk 0:11:26.1]} 22. Rxd8+ {[%clk 0:19:37.4]} 22... Qxd8 {[%clk 0:10:08]} 23. Qxd8+ {[%clk 0:18:05.3]} 23... Nxd8 {[%clk 0:10:02.6]} 24. Bf1 {[%clk 0:16:46.7]} 24... Ne6 {[%clk 0:08:43.4]} 25. f3 {[%clk 0:13:50.2]} 25... Kf8 {[%clk 0:08:11.4]} 26. Kg2 {[%clk 0:12:50.4]} 26... Ke7 {[%clk 0:07:09.2]} 27. Kf2 {[%clk 0:12:34]} 27... Kd6 {[%clk 0:05:44.8]} 28. Ke3 {[%clk 0:11:32.9]} 28... g6 {[%clk 0:05:33.6]} 29. b4 {[%clk 0:10:18.9]} 29... c6 {[%clk 0:05:09.1]} 30. a4 {[%clk 0:09:15.3]} 30... a5 {[%clk 0:04:46.1]} 31. Bc4 {[%clk 0:06:10.2]} 31... axb4 {[%clk 0:04:43.1]} 32. Bxe6 {[%clk 0:05:54.8]} 32... fxe6 {[%clk 0:04:32.5]} 33. cxb4 {[%clk 0:05:54.8]} 33... c5 {[%clk 0:04:34.3]} 34. Kd3 {[%clk 0:05:24]} 34... cxb4 {[%clk 0:04:18.3]} 35. Kc4 {[%clk 0:05:19.9]} 35... b3 {[%clk 0:03:56.1]} 36. Kxb3 {[%clk 0:05:19]} 36... Kc5 {[%clk 0:03:59.1]} 37. Kc3 {[%clk 0:05:07.7]} 37... g5 {[%clk 0:02:49.6]} 38. g4 {[%clk 0:05:03.1]} 38... Kc6 {[%clk 0:02:09.6]} 39. Kc4 {[%clk 0:04:53]} 39... Kb7 {[%clk 0:02:07.1]} 1/2-1/2

[Event "Live Chess"]
[Site "Chess.com"]
[Date "2021.09.03"]
[Round "1"]
[White "Bruce_Hedman"]
[Black "hip_hop_99"]
[Result "0-1"]
[CurrentPosition "8/1k6/1p2p1p1/P1bb1p1p/3R4/5PP1/6P1/6K1 w - -"]
[Timezone "UTC"]
[ECO "A45"]
[ECOUrl "https://www.chess.com/openings/Indian-Game"]
[UTCDate "2021.09.03"]
[UTCTime "01:32:30"]
[WhiteElo "1087"]
[BlackElo "1658"]
[TimeControl "2100+5"]
[Termination "hip_hop_99 won by resignation"]
[StartTime "01:32:30"]
[EndDate "2021.09.03"]
[EndTime "02:13:52"]
[Link "https://www.chess.com/game/live/24371512863"]

1. d4 {[%clk 0:35:01]} 1... Nf6 {[%clk 0:35:03]} 2. Bf4 {[%clk 0:35:00.9]} 2... b6 {[%clk 0:35:06.9]} 3. e3 {[%clk 0:34:49]} 3... Bb7 {[%clk 0:35:02.8]} 4. Nf3 {[%clk 0:34:35.8]} 4... Nh5 {[%clk 0:35:02]} 5. Bg3 {[%clk 0:34:33.3]} 5... Nxg3 {[%clk 0:35:04.7]} 6. hxg3 {[%clk 0:34:35.3]} 6... g6 {[%clk 0:35:08.5]} 7. c3 {[%clk 0:34:09.1]} 7... Bg7 {[%clk 0:35:10.3]} 8. Nbd2 {[%clk 0:34:08.2]} 8... c5 {[%clk 0:35:03.7]} 9. Bd3 {[%clk 0:33:50.6]} 9... cxd4 {[%clk 0:34:46.7]} 10. cxd4 {[%clk 0:33:48.6]} 10... Nc6 {[%clk 0:34:49.7]} 11. Be4 {[%clk 0:32:42.5]} 11... f5 {[%clk 0:34:45.3]} 12. Bd5 {[%clk 0:31:48.2]} 12... e6 {[%clk 0:34:46.8]} 13. Bxc6 {[%clk 0:31:17.8]} 13... dxc6 {[%clk 0:34:37.7]} 14. Ne5 {[%clk 0:30:31.2]} 14... c5 {[%clk 0:34:29.4]} 15. Ndf3 {[%clk 0:30:24.1]} 15... cxd4 {[%clk 0:34:25.1]} 16. exd4 {[%clk 0:29:24.1]} 16... O-O {[%clk 0:33:58]} 17. O-O {[%clk 0:28:13.5]} 17... Qd5 {[%clk 0:32:59.3]} 18. Qb3 {[%clk 0:27:25.8]} 18... Qd6 {[%clk 0:31:56.9]} 19. Ng5 {[%clk 0:24:47.4]} 19... Bd5 {[%clk 0:31:55]} 20. Qe3 {[%clk 0:22:25.8]} 20... h6 {[%clk 0:29:24.3]} 21. Ngf7 {[%clk 0:20:35.5]} 21... Rxf7 {[%clk 0:29:23.6]} 22. Nxf7 {[%clk 0:20:35.2]} 22... Kxf7 {[%clk 0:29:27.7]} 23. Rac1 {[%clk 0:20:25.5]} 23... Rd8 {[%clk 0:28:58.6]} 24. Rc3 {[%clk 0:19:44.3]} 24... Bxa2 {[%clk 0:27:21.8]} 25. b3 {[%clk 0:18:34.9]} 25... Qxd4 {[%clk 0:27:11.2]} 26. Qxd4 {[%clk 0:18:05.1]} 26... Bxd4 {[%clk 0:27:10.4]} 27. Rd3 {[%clk 0:18:00.2]} 27... Bf6 {[%clk 0:27:13.8]} 28. Rxd8 {[%clk 0:18:00.2]} 28... Bxd8 {[%clk 0:27:17.6]} 29. Rd1 {[%clk 0:17:46]} 29... Ke7 {[%clk 0:27:18.2]} 30. Rd3 {[%clk 0:17:29.5]} 30... Bb1 {[%clk 0:27:04]} 31. Rd2 {[%clk 0:16:58.1]} 31... Be4 {[%clk 0:27:06.7]} 32. f3 {[%clk 0:16:52.3]} 32... Bd5 {[%clk 0:27:10.3]} 33. Rb2 {[%clk 0:16:17.5]} 33... h5 {[%clk 0:27:03.4]} 34. b4 {[%clk 0:16:09]} 34... Kd6 {[%clk 0:27:03.6]} 35. Rc2 {[%clk 0:15:18.2]} 35... Kd7 {[%clk 0:26:54.8]} 36. Rd2 {[%clk 0:15:00.4]} 36... Bf6 {[%clk 0:26:40.2]} 37. Rd3 {[%clk 0:14:28.7]} 37... Kc6 {[%clk 0:26:26.6]} 38. Ra3 {[%clk 0:13:53.7]} 38... Kb7 {[%clk 0:25:32.8]} 39. Rd3 {[%clk 0:12:41.6]} 39... Be7 {[%clk 0:25:25.6]} 40. Rd4 {[%clk 0:11:55]} 40... a5 {[%clk 0:25:22.2]} 41. bxa5 {[%clk 0:11:40.7]} 41... Bc5 {[%clk 0:25:25.8]} 0-1

[Event "Live Chess"]
[Site "Chess.com"]
[Date "2021.09.03"]
[Round "1"]
[White "Thechesskid2021"]
[Black "MrRap9"]
[Result "1-0"]
[CurrentPosition "8/rpp2Qpk/p7/4P2R/8/P6P/1PP3b1/4R1K1 b - -"]
[Timezone "UTC"]
[ECO "C28"]
[ECOUrl "https://www.chess.com/openings/Vienna-Game-Falkbeer-Vienna-Gambit"]
[UTCDate "2021.09.03"]
[UTCTime "01:32:39"]
[WhiteElo "1649"]
[BlackElo "1055"]
[TimeControl "2100+5"]
[Termination "Thechesskid2021 won by checkmate"]
[StartTime "01:32:39"]
[EndDate "2021.09.03"]
[EndTime "01:40:23"]
[Link "https://www.chess.com/game/live/24371513309"]

1. e4 {[%clk 0:35:05]} 1... e5 {[%clk 0:35:00.2]} 2. Nc3 {[%clk 0:35:08.6]} 2... Nf6 {[%clk 0:35:02.8]} 3. f4 {[%clk 0:35:12.3]} 3... d6 {[%clk 0:35:00.6]} 4. Nf3 {[%clk 0:35:15]} 4... Nc6 {[%clk 0:35:01.8]} 5. Bb5 {[%clk 0:35:18.2]} 5... exf4 {[%clk 0:35:00.9]} 6. d4 {[%clk 0:35:21.3]} 6... Bd7 {[%clk 0:34:59.8]} 7. Bxf4 {[%clk 0:35:23.3]} 7... a6 {[%clk 0:34:59.6]} 8. Bd3 {[%clk 0:35:22.6]} 8... Be7 {[%clk 0:34:59.8]} 9. O-O {[%clk 0:35:21.5]} 9... Ng4 {[%clk 0:34:56.7]} 10. h3 {[%clk 0:35:10.7]} 10... Nf6 {[%clk 0:34:57]} 11. a3 {[%clk 0:34:37.2]} 11... O-O {[%clk 0:34:50.1]} 12. e5 {[%clk 0:34:37.6]} 12... dxe5 {[%clk 0:34:51.4]} 13. dxe5 {[%clk 0:34:42.5]} 13... Nh5 {[%clk 0:34:49.7]} 14. Bxh7+ {[%clk 0:32:24.3]} 14... Kxh7 {[%clk 0:34:38.8]} 15. Ng5+ {[%clk 0:32:28.5]} 15... Bxg5 {[%clk 0:34:42]} 16. Qxh5+ {[%clk 0:32:32.1]} 16... Kg8 {[%clk 0:34:42.1]} 17. Bxg5 {[%clk 0:32:35.2]} 17... Qe8 {[%clk 0:34:37.4]} 18. Rae1 {[%clk 0:32:28]} 18... Nd4 {[%clk 0:33:58.5]} 19. Nd5 {[%clk 0:32:24.2]} 19... Ra7 {[%clk 0:33:48.3]} 20. Ne7+ {[%clk 0:32:26.1]} 20... Qxe7 {[%clk 0:33:47]} 21. Bxe7 {[%clk 0:32:31]} 21... Ne6 {[%clk 0:33:49.9]} 22. Bxf8 {[%clk 0:32:34.1]} 22... Nxf8 {[%clk 0:33:54.8]} 23. Qxf7+ {[%clk 0:32:38.2]} 23... Kh8 {[%clk 0:33:58.3]} 24. Qxf8+ {[%clk 0:32:42.5]} 24... Kh7 {[%clk 0:34:03.2]} 25. Qf7 {[%clk 0:32:43.6]} 25... Bc6 {[%clk 0:34:01.4]} 26. Rf5 {[%clk 0:32:46.2]} 26... Bxg2 {[%clk 0:34:04.2]} 27. Rh5# {[%clk 0:32:50.5]} 1-0